fUST/lending_fUST_20240907
["ID","MTS","AMOUNT","RATE_DAILY","PERIOD"]
[337486072,1725694240672,-500.0,0.00046575,120]
[337486073,1725694240683,-500.0,0.00046575,120]
[337486074,1725694240692,-500.0,0.00046575,120]
[337486075,1725694240702,-500.0,0.00046575,120]
[337486076,1725694240712,-500.0,0.00046575,120]
[337486077,1725694240723,-500.0,0.00046575,120]
[337486078,1725694240733,-500.0,0.00046575,120]
[337486079,1725694240743,-500.0,0.00046575,120]
[337486080,1725694240754,-500.0,0.00046575,120]
[337486081,1725694240763,-500.0,0.00046575,120]
[337486082,1725694240772,-500.0,0.00046575,60]
[337486083,1725694240782,-500.0,0.00046575,120]
[337486084,1725694240792,-500.0,0.00046575,120]
[337486085,1725694240803,-500.0,0.00046575,120]
[337486086,1725694240812,-500.0,0.00046575,120]
[337486087,1725694240822,-150.112233,0.000466,11]
[337486088,1725694240832,-150.112233,0.000467,14]
[337486089,1725694240841,-1570.15790692,0.0004671,2]
[337486090,1725694240851,-11662.36837513,0.00046739,60]
[337486091,1725694240860,-528.84611441,0.00046808,120]
[337486092,1725694240869,-276.98738217,0.00046808,31]
[337486093,1725694240882,-500.0,0.00046808,120]
[337486094,1725694240891,-500.0,0.00046808,120]
[337486095,1725694240900,-500.0,0.00046808,120]
[337486096,1725694240910,-500.0,0.00046808,120]
[337486097,1725694240919,-355.24307732,0.00046808,120]
[337486098,1725694240928,-500.0,0.00046808,120]
[337486099,1725694240939,-4591.90187079,0.00046809,5]
[337486109,1725694246562,-3188.75,0.00046565,3]
[337486110,1725694246572,-500.0,0.00046575,120]
[337486111,1725694246581,-512.66288836,0.00046575,120]
[337486112,1725694246590,-500.0,0.00046575,120]
[337486113,1725694246599,-500.0,0.00046575,120]
[337486114,1725694246608,-500.0,0.00046575,120]
[337486115,1725694246618,-500.0,0.00046575,120]
[337486116,1725694246628,-12079.8900291,0.00046809,5]
[337486117,1725694246642,-1404.94704841,0.00046809,5]
[337486118,1725694246652,-500.0,0.00046829,120]
[337486119,1725694246661,-500.0,0.00046829,120]
[337486120,1725694246670,-500.0,0.00046829,120]
[337486121,1725694246680,-500.0,0.00046829,120]
[337486122,1725694246690,-500.0,0.00046829,120]
[337486123,1725694246699,-500.0,0.00046829,120]
[337486124,1725694246709,-500.0,0.00046829,120]
[337486125,1725694246718,-256.05295159,0.00046829,120]
[337486127,1725694401980,-200.0,0.0003,120]
[337486134,1725694434536,-166.666667,0.00038648,2]
[337486135,1725694434564,-166.666667,0.0003905,2]
[337486136,1725694434590,-196.778034,0.00039066,2]
[337486137,1725694434616,-3000.0,0.00039212,2]
[337486138,1725694434642,-166.666667,0.00039453,2]
[337486139,1725694434669,-166.666667,0.00039856,2]
[337486140,1725694434695,-1000.0,0.0004,120]
[337486157,1725694722388,170.983823,0.00039601,120]
[337486158,1725694737748,627.0,0.00039,5]
[337486161,1725694763048,500.0,0.0004,60]
[337486166,1725694794244,3838.571475,0.00039197,2]
[337486169,1725694844042,174.573647,0.00036724,2]
[337486186,1725695136138,-170.761592,0.0003765,2]
[337486187,1725695136162,-97.20666948,0.00037662,2]
[337486188,1725695151389,251.0,0.00037282,2]
[337486189,1725695158103,-164.80538152,0.00037662,2]
[337486190,1725695158127,-170.761592,0.00037895,2]
[337486191,1725695158151,-170.761592,0.00038141,2]
[337486192,1725695158181,-170.761592,0.00038386,2]
[337486193,1725695158203,-170.761592,0.00038631,2]
[337486194,1725695158226,-170.761592,0.00038876,2]
[337486195,1725695158252,-170.761592,0.00039121,2]
[337486196,1725695158276,-722.74373788,0.00039197,2]
[337486198,1725695203497,170.983823,0.00037178,120]
[337486199,1725695218470,2221.2509736,0.00037178,2]
[337486200,1725695242130,-403.02197391,0.00039197,2]
[337486201,1725695252112,-1092.92054628,0.00039197,2]
[337486202,1725695277342,7182.1915564,0.00037178,2]
[337486206,1725695345106,-3494.0,0.00035,2]
[337486207,1725695345129,-400.0,0.00037177,2]
[337486208,1725695345152,-17717.8084436,0.00037178,2]
[337486209,1725695345174,-299.81070104,0.000372,2]
[337486210,1725695345194,-500.0,0.000372,5]
[337486211,1725695345215,-500.0,0.000372,2]
[337486212,1725695345240,-1946.2152259,0.00037432,2]
[337486213,1725695345261,-225.0135201,0.00037432,2]
[337486214,1725695345282,-500.67734968,0.000392,5]
[337486215,1725695345305,-500.0,0.000392,5]
[337486216,1725695345328,-170.761592,0.00039367,2]
[337486217,1725695345350,-170.761592,0.00039612,2]
[337486218,1725695345369,-254.27125085,0.00039911,2]
[337486219,1725695345391,-36.02115603,0.0004,30]
[337486220,1725695345423,-113.97884397,0.0004,30]
[337486221,1725695357120,185.8824663,0.00038758,30]
[337486222,1725695358192,500.0,0.000372,5]
[337486223,1725695358253,888.53792797,0.00037748,5]
[337486224,1725695370224,3000.0,0.00040798,2]
[337486233,1725695426486,178.499673,0.00038266,2]
[337486275,1725695432445,-1000.0,0.0004433,10]
[337486277,1725695432454,-277.10634219,0.000455,120]
[337486287,1725695432540,-575.799038,0.000455,120]
[337486289,1725695432552,-743.7976448,0.000455,120]
[337486372,1725695438464,-495.30008582,0.000455,120]
[337486373,1725695438473,-1932.02363557,0.00046454,28]
[337486375,1725695438483,-1589.83793129,0.00046473,2]
[337486376,1725695438492,-410.1493314,0.000465,120]
[337486377,1725695438502,-410.1493314,0.000465,120]
[337486378,1725695438512,-581.3072706,0.000465,120]
[337486379,1725695438521,-2000.0,0.000465,10]
[337486380,1725695438530,-7301.01843777,0.000465,7]
[337486381,1725695438539,-6336.01,0.00046544,3]
[337486382,1725695438548,-5280.01,0.00046544,3]
[337486383,1725695438558,-4400.01,0.00046544,3]
[337486384,1725695438567,-3666.67,0.00046544,3]
[337486385,1725695438576,-369.59,0.00046545,30]
[337486386,1725695438586,-500.0,0.00046553,120]
[337486387,1725695438595,-500.0,0.00046553,120]
[337486388,1725695438605,-500.0,0.00046553,31]
[337486389,1725695438614,-500.0,0.00046553,7]
[337486390,1725695438624,-500.0,0.00046553,120]
[337486391,1725695438634,-500.0,0.00046553,7]
[337486392,1725695438644,-500.0,0.00046553,120]
[337486393,1725695438653,-500.0,0.00046553,120]
[337486394,1725695438665,-500.0,0.00046553,7]
[337486395,1725695438674,-310.922377,0.00046553,120]
[337486397,1725695438684,-500.0,0.00046553,7]
[337486398,1725695438694,-500.0,0.00046553,120]
[337486399,1725695438704,-377.54189163,0.00046553,120]
[337486401,1725695438713,-500.0,0.00046553,7]
[337486403,1725695438723,-500.0,0.00046553,31]
[337486405,1725695438732,-500.0,0.00046553,7]
[337486406,1725695438742,-500.0,0.00046553,120]
[337486407,1725695438750,-500.0,0.00046553,7]
[337486408,1725695438760,-500.0,0.00046553,7]
[337486409,1725695438769,-500.0,0.00046553,120]
[337486410,1725695438778,-500.0,0.00046553,7]
[337486411,1725695438787,-500.0,0.00046553,7]
[337486412,1725695438797,-500.0,0.00046553,7]
[337486413,1725695438807,-500.0,0.00046553,7]
[337486414,1725695438816,-500.0,0.00046553,120]
[337486415,1725695438825,-500.0,0.00046553,7]
[337486416,1725695438835,-500.0,0.00046553,120]
[337486417,1725695438844,-500.0,0.00046553,7]
[337486418,1725695438854,-500.0,0.00046553,7]
[337486419,1725695438863,-500.0,0.00046553,120]
[337486420,1725695438872,-500.0,0.00046553,7]
[337486421,1725695438881,-500.0,0.00046553,7]
[337486422,1725695438891,-500.0,0.00046553,7]
[337486423,1725695438901,-500.0,0.00046553,7]
[337486424,1725695438911,-500.0,0.00046553,7]
[337486425,1725695438920,-500.0,0.00046553,7]
[337486426,1725695438930,-500.0,0.00046553,7]
[337486427,1725695438939,-500.0,0.00046553,7]
[337486428,1725695438948,-500.0,0.00046553,7]
[337486429,1725695438957,-500.0,0.00046553,7]
[337486430,1725695438967,-500.0,0.00046553,7]
[337486431,1725695438976,-500.0,0.00046553,7]
[337486432,1725695438986,-500.0,0.00046553,7]
[337486433,1725695438995,-500.0,0.00046553,7]
[337486434,1725695439005,-500.0,0.00046553,7]
[337486435,1725695439014,-500.0,0.00046553,7]
[337486436,1725695439024,-500.0,0.00046553,7]
[337486437,1725695439033,-500.0,0.00046553,7]
[337486438,1725695439042,-398.31980325,0.00046553,7]
[337486439,1725695439051,-500.0,0.00046553,7]
[337486440,1725695439061,-500.0,0.00046553,7]
[337486441,1725695439070,-500.0,0.00046553,7]
[337486442,1725695439079,-500.0,0.00046553,7]
[337486443,1725695439088,-500.0,0.00046553,7]
[337486444,1725695439097,-500.0,0.00046553,7]
[337486445,1725695439106,-500.0,0.00046553,7]
[337486446,1725695439115,-500.0,0.00046553,7]
[337486447,1725695439125,-500.0,0.00046553,7]
[337486448,1725695439134,-500.0,0.00046553,7]
[337486449,1725695439145,-500.0,0.00046553,7]
[337486450,1725695439155,-370.19228009,0.00046553,120]
[337486451,1725695439164,-311.57865159,0.00046553,31]
[337486452,1725695439173,-500.0,0.00046553,120]
[337486453,1725695439182,-500.0,0.00046553,120]
[337486454,1725695439192,-620.01604377,0.00046553,120]
[337486455,1725695439201,-500.0,0.00046553,120]
[337486456,1725695439210,-500.0,0.00046553,120]
[337486457,1725695439220,-500.0,0.00046553,120]
[337486458,1725695439229,-500.0,0.00046553,120]
[337486459,1725695439239,-901.68198491,0.00046554,7]
[337486460,1725695439251,-20065.1476789,0.00046554,2]
[337486461,1725695439401,-7586.08480312,0.00046554,2]
[337486462,1725695439424,-51.75613404,0.00046554,2]
[337486480,1725695440463,169.586631,0.0004017,2]
[337486493,1725695440686,169.586631,0.0004028,2]
[337486494,1725695440911,169.586631,0.0004039,2]
[337486495,1725695441154,169.586631,0.00040501,2]
[337486496,1725695441360,169.586631,0.00040611,2]
[337486497,1725695441568,169.586631,0.00040721,2]
[337486498,1725695441791,169.586631,0.00040831,2]
[337486499,1725695441994,169.586631,0.00040941,2]
[337486500,1725695442214,169.586631,0.00041051,2]
[337486501,1725695442425,169.586631,0.00041162,2]
[337486502,1725695442641,169.586631,0.00041272,2]
[337486504,1725695442857,169.586631,0.00041382,2]
[337486515,1725695443079,169.586631,0.00041492,2]
[337486527,1725695443293,169.586631,0.00041602,2]
[337486528,1725695443620,169.586631,0.00041712,2]
[337486532,1725695443760,169.586631,0.00041822,2]
[337486534,1725695443997,169.586631,0.00041933,2]
[337486535,1725695444236,169.586631,0.00042043,2]
[337486536,1725695444466,169.586631,0.00042153,2]
[337486537,1725695444676,169.586631,0.00042263,2]
[337486552,1725695514388,409.9728619,0.00041196,2]
[337486553,1725695535041,153.0,0.00041196,2]
[337486554,1725695536078,532.1030281,0.00041196,2]
[337486555,1725695537410,659.19861867,0.00035774,7]
[337486556,1725695545586,153.0,0.00041196,2]
[337486558,1725695767746,-1527.3229588,0.00039537,2]
[337486559,1725695772825,-167.15689733,0.00041096,2]
[337486560,1725695772854,-333.0,0.00041195,30]
[337486561,1725695772880,-300.0,0.00041195,5]
[337486562,1725695772907,-153.0,0.00041196,2]
[337486563,1725695772934,-153.0,0.00041196,2]
[337486564,1725695772959,-153.0,0.00041196,2]
[337486565,1725695772987,-153.0,0.00041196,2]
[337486566,1725695773012,-153.0,0.00041196,2]
[337486567,1725695773037,-153.0,0.00041196,2]
[337486568,1725695773062,-153.0,0.00041196,2]
[337486569,1725695773087,-153.0,0.00041196,2]
[337486570,1725695773112,-153.0,0.00041196,2]
[337486571,1725695773138,-153.0,0.00041196,2]
[337486572,1725695773169,-153.0,0.00041196,2]
[337486573,1725695773369,-153.0,0.00041196,2]
[337486574,1725695773399,-160.57516774,0.000412,10]
[337486575,1725695778321,-167.15689731,0.00043753,2]
[337486576,1725695798460,-410.1493314,0.000464,120]
[337486577,1725695798487,-691.1159792,0.000464,120]
[337486578,1725695798512,-410.1087154,0.000464,120]
[337486579,1725695798539,-410.1493314,0.000464,120]
[337486580,1725695798564,-410.1493314,0.000464,120]
[337486581,1725695798588,-721.0,0.000464,62]
[337486582,1725695798612,-167.15689731,0.0004641,2]
[337486583,1725695798638,-2302.56805636,0.00046454,28]
[337486584,1725695798662,-1302.00985772,0.00046475,2]
[337486585,1725695798687,-1000.0,0.00046475,2]
[337486586,1725695798712,-2000.0,0.000465,9]
[337486587,1725695798736,-175.59249981,0.0004651,8]
[337486588,1725695803730,-1824.40750019,0.0004651,8]
[337486589,1725695803757,-2000.0,0.0004652,6]
[337486590,1725695803782,-901.68198491,0.00046553,7]
[337486591,1725695803808,-500.0,0.00046553,120]
[337486592,1725695803834,-500.0,0.00046553,120]
[337486593,1725695803863,-500.0,0.00046553,120]
[337486594,1725695803890,-500.0,0.00046553,7]
[337486595,1725695803916,-512.31350441,0.00046553,120]
[337486596,1725695803946,-500.0,0.00046553,7]
[337486597,1725695803971,-500.0,0.00046553,120]
[337486598,1725695803996,-500.0,0.00046553,120]
[337486599,1725695804021,-500.0,0.00046553,120]
[337486600,1725695804046,-500.0,0.00046553,31]
[337486601,1725695804072,-261.59701049,0.00046553,7]
[337486602,1725695835381,-238.40298951,0.00046553,7]
[337486603,1725695835407,-377.54189163,0.00046553,120]
[337486604,1725695835436,-500.0,0.00046553,7]
[337486605,1725695835472,-500.0,0.00046553,120]
[337486606,1725695835496,-500.0,0.00046553,31]
[337486607,1725695835521,-500.0,0.00046553,120]
[337486608,1725695835546,-500.0,0.00046553,7]
[337486609,1725695835570,-441.16281248,0.00046553,31]
[337486610,1725695835595,-500.0,0.00046553,120]
[337486611,1725695835622,-500.0,0.00046553,120]
[337486612,1725695835649,-500.0,0.00046553,7]
[337486613,1725695835675,-500.0,0.00046553,120]
[337486614,1725695835702,-500.0,0.00046553,7]
[337486615,1725695835729,-500.0,0.00046553,120]
[337486616,1725695835754,-500.0,0.00046553,120]
[337486617,1725695835781,-500.0,0.00046553,7]
[337486618,1725695835806,-500.0,0.00046553,120]
[337486619,1725695835830,-500.0,0.00046553,120]
[337486620,1725695835858,-500.0,0.00046553,7]
[337486621,1725695835883,-500.0,0.00046553,120]
[337486622,1725695835910,-442.89230638,0.00046553,7]
[337486623,1725695836291,-57.10769362,0.00046553,7]
[337486624,1725695836319,-500.0,0.00046553,7]
[337486625,1725695836344,-500.0,0.00046553,120]
[337486626,1725695836369,-500.0,0.00046553,120]
[337486627,1725695836399,-500.0,0.00046553,7]
[337486628,1725695836426,-500.0,0.00046553,120]
[337486629,1725695836452,-500.0,0.00046553,7]
[337486630,1725695836477,-500.0,0.00046553,120]
[337486631,1725695836502,-500.0,0.00046553,7]
[337486632,1725695836528,-500.0,0.00046553,120]
[337486633,1725695836555,-500.0,0.00046553,7]
[337486634,1725695836581,-500.0,0.00046553,7]
[337486635,1725695836608,-500.0,0.00046553,120]
[337486636,1725695836635,-500.0,0.00046553,7]
[337486637,1725695836661,-500.0,0.00046553,120]
[337486638,1725695836690,-500.0,0.00046553,7]
[337486639,1725695836719,-500.0,0.00046553,120]
[337486640,1725695836746,-500.0,0.00046553,7]
[337486641,1725695836772,-500.0,0.00046553,120]
[337486642,1725695836801,-500.0,0.00046553,7]
[337486643,1725695836826,-365.00008167,0.00046553,120]
[337486644,1725695836851,-77.89222471,0.00046553,120]
[337486645,1725695837186,-1000.0,0.00046465,2]
[337486646,1725695837213,-422.10777529,0.00046553,120]
[337486647,1725695837240,-500.0,0.00046553,7]
[337486648,1725695837268,-500.0,0.00046553,7]
[337486649,1725695837293,-500.0,0.00046553,120]
[337486650,1725695837320,-500.0,0.00046553,7]
[337486651,1725695837345,-500.0,0.00046553,120]
[337486652,1725695837374,-500.0,0.00046553,7]
[337486653,1725695837399,-500.0,0.00046553,120]
[337486654,1725695837427,-500.0,0.00046553,7]
[337486655,1725695837454,-500.0,0.00046553,7]
[337486656,1725695837480,-500.0,0.00046553,120]
[337486657,1725695837506,-500.0,0.00046553,7]
[337486658,1725695837530,-500.0,0.00046553,120]
[337486659,1725695837556,-500.0,0.00046553,7]
[337486660,1725695837581,-500.0,0.00046553,120]
[337486661,1725695837607,-500.0,0.00046553,7]
[337486662,1725695837632,-500.0,0.00046553,7]
[337486663,1725695837657,-500.0,0.00046553,120]
[337486664,1725695837682,-77.89222471,0.00046553,7]
[337486665,1725695838160,-422.10777529,0.00046553,7]
[337486666,1725695838186,-500.0,0.00046553,120]
[337486667,1725695838219,-500.0,0.00046553,7]
[337486668,1725695838244,-500.0,0.00046553,120]
[337486669,1725695838387,-500.0,0.00046553,7]
[337486670,1725695838413,-500.0,0.00046553,120]
[337486671,1725695838438,-500.0,0.00046553,120]
[337486672,1725695838470,-500.0,0.00046553,7]
[337486673,1725695838498,-500.0,0.00046553,7]
[337486674,1725695838523,-500.0,0.00046553,120]
[337486675,1725695838550,-500.0,0.00046553,7]
[337486676,1725695838576,-500.0,0.00046553,7]
[337486677,1725695838601,-500.0,0.00046553,120]
[337486678,1725695838628,-500.0,0.00046553,7]
[337486679,1725695838654,-500.0,0.00046553,7]
[337486680,1725695838680,-500.0,0.00046553,7]
[337486681,1725695838708,-500.0,0.00046553,7]
[337486682,1725695838735,-500.0,0.00046553,7]
[337486683,1725695838760,-500.0,0.00046553,7]
[337486684,1725695838786,-500.0,0.00046553,7]
[337486685,1725695838813,-77.89222471,0.00046553,7]
[337486686,1725695839290,-422.10777529,0.00046553,7]
[337486687,1725695839318,-500.0,0.00046553,7]
[337486688,1725695839345,-500.0,0.00046553,7]
[337486689,1725695839372,-500.0,0.00046553,7]
[337486690,1725695839400,-500.0,0.00046553,7]
[337486691,1725695839427,-500.0,0.00046553,7]
[337486692,1725695839456,-500.0,0.00046553,7]
[337486693,1725695839482,-500.0,0.00046553,7]
[337486694,1725695839508,-500.0,0.00046553,7]
[337486695,1725695839534,-500.0,0.00046553,7]
[337486696,1725695839561,-500.0,0.00046553,7]
[337486697,1725695839587,-500.0,0.00046553,7]
[337486698,1725695839614,-500.0,0.00046553,7]
[337486699,1725695839640,-500.0,0.00046553,7]
[337486700,1725695839666,-500.0,0.00046553,7]
[337486701,1725695839693,-500.0,0.00046553,7]
[337486702,1725695839719,-500.0,0.00046553,7]
[337486703,1725695839747,-500.0,0.00046553,7]
[337486704,1725695839775,-646.53230483,0.00046553,7]
[337486705,1725695839800,-431.35991988,0.00046553,120]
[337486706,1725695888736,9832.84310269,0.0003519,2]
[337486707,1725695888764,7203.26793493,0.0003519,2]
[337486708,1725695888791,5946.87726018,0.0003519,2]
[337486710,1725695901813,2525.79978102,0.0003069,30]
[337486711,1725695901839,10000.0,0.0003069,30]
[337486712,1725695901863,10000.0,0.0003069,30]
[337486713,1725695901892,10000.0,0.0003069,30]
[337486715,1725695915312,3000.0,0.00028728,2]
[337486717,1725695934451,172.473797,0.00028646,2]
[337486718,1725695985999,245.406167,0.00029113,2]
[337486719,1725695986214,245.406167,0.00029193,2]
[337486720,1725695986466,245.406167,0.00029273,2]
[337486721,1725695986702,245.406167,0.00029353,2]
[337486722,1725695986944,245.406167,0.00029433,2]
[337486723,1725695987159,245.406167,0.00029512,2]
[337486724,1725695987354,245.406167,0.00029592,2]
[337486725,1725695987765,245.406167,0.00029672,2]
[337486726,1725695987990,245.406167,0.00029752,2]
[337486727,1725695988214,245.406167,0.00029832,2]
[337486728,1725695988467,245.406167,0.00029912,2]
[337486729,1725695988672,245.406167,0.00029991,2]
[337486730,1725696023907,248.72960141,0.0003,2]
[337486731,1725696032624,-245.406167,0.00030071,2]
[337486732,1725696032650,-245.406167,0.00030151,2]
[337486733,1725696032678,-245.406167,0.00030231,2]
[337486734,1725696032705,-245.406167,0.00030311,2]
[337486735,1725696032731,-245.406167,0.00030391,2]
[337486736,1725696032760,-245.406167,0.0003047,2]
[337486737,1725696032786,-245.406167,0.0003055,2]
[337486738,1725696032812,-1359.57547241,0.00030591,2]
[337486739,1725696032839,-2256.25000377,0.00030591,2]
[337486740,1725696032867,-245.406167,0.0003063,2]
[337486741,1725696032891,-500.0,0.00030673,2]
[337486742,1725696032918,-500.0,0.00030673,5]
[337486743,1725696032942,-500.0,0.00030673,2]
[337486744,1725696032967,-2920.92518782,0.0003068,3]
[337486745,1725696033581,-5300.71481218,0.0003068,3]
[337486746,1725696033609,-4699.28518782,0.0003068,3]
[337486747,1725696034637,-2152.08481218,0.0003068,3]
[337486748,1725696034672,-5709.47,0.0003068,3]
[337486749,1725696034698,-2138.44518782,0.0003068,3]
[337486750,1725696035733,-2619.44481218,0.0003068,3]
[337486751,1725696035762,-1513.26971153,0.0003069,3]
[337486752,1725696035788,-5867.28547629,0.0003069,3]
[337486753,1725696036597,-369.59,0.0003068,3]
[337486754,1725696036624,-6545.02742141,0.0003069,3]
[337486755,1725696036649,-3085.38257859,0.0003069,30]
[337486756,1725696037435,-10000.0,0.0003069,30]
[337486757,1725696038463,-10000.0,0.0003069,30]
[337486758,1725696039290,-370.19228009,0.00030689,2]
[337486759,1725696039317,-389.86386262,0.00030689,2]
[337486760,1725696039344,-500.0,0.00030689,2]
[337486761,1725696039370,-500.0,0.00030689,2]
[337486762,1725696039398,-554.95816653,0.00030689,2]
[337486763,1725696039426,-500.0,0.00030689,2]
[337486764,1725696039457,-500.0,0.00030689,2]
[337486765,1725696039485,-500.0,0.00030689,2]
[337486766,1725696039678,-500.0,0.00030689,2]
[337486767,1725696039705,-5684.98569076,0.0003069,30]
[337486768,1725696040193,-500.0,0.00030689,2]
[337486769,1725696040221,-9500.0,0.0003069,30]
[337486770,1725696041144,-500.0,0.00030689,2]
[337486771,1725696041175,-500.0,0.00030689,2]
[337486772,1725696041200,-500.0,0.00030689,2]
[337486773,1725696041227,-458.92740633,0.00030689,2]
[337486774,1725696041253,-500.0,0.00030689,2]
[337486775,1725696041279,-500.0,0.00030689,2]
[337486776,1725696041305,-500.0,0.00030689,2]
[337486777,1725696041332,-500.0,0.00030689,2]
[337486778,1725696041359,-500.0,0.00030689,2]
[337486779,1725696041385,-500.0,0.00030689,2]
[337486780,1725696041411,-500.0,0.00030689,2]
[337486781,1725696041442,-500.0,0.00030689,2]
[337486782,1725696041468,-500.0,0.00030689,2]
[337486783,1725696041497,-500.0,0.00030689,2]
[337486784,1725696041525,-500.0,0.00030689,2]
[337486785,1725696041554,-500.0,0.00030689,2]
[337486786,1725696041580,-500.0,0.00030689,2]
[337486787,1725696041606,-500.0,0.00030689,2]
[337486788,1725696041636,-500.0,0.00030689,2]
[337486789,1725696041663,-500.0,0.00030689,2]
[337486790,1725696041689,-41.07259367,0.00030689,2]
[337486791,1725696042201,-458.92740633,0.00030689,2]
[337486792,1725696042229,-500.0,0.00030689,2]
[337486793,1725696042257,-500.0,0.00030689,2]
[337486794,1725696042283,-500.0,0.00030689,2]
[337486795,1725696042309,-500.0,0.00030689,2]
[337486796,1725696042334,-500.0,0.00030689,2]
[337486797,1725696042359,-500.0,0.00030689,2]
[337486798,1725696042384,-500.0,0.00030689,2]
[337486799,1725696042409,-500.0,0.00030689,2]
[337486800,1725696042445,-500.0,0.00030689,2]
[337486801,1725696042471,-500.0,0.00030689,2]
[337486802,1725696042497,-500.0,0.00030689,2]
[337486803,1725696042524,-500.0,0.00030689,2]
[337486804,1725696042550,-500.0,0.00030689,2]
[337486805,1725696042577,-500.0,0.00030689,2]
[337486806,1725696042603,-500.0,0.00030689,2]
[337486807,1725696042628,-500.0,0.00030689,2]
[337486808,1725696042654,-500.0,0.00030689,2]
[337486809,1725696042678,-500.0,0.00030689,2]
[337486810,1725696042703,-500.0,0.00030689,2]
[337486811,1725696042728,-41.07259367,0.00030689,2]
[337486812,1725696043338,-458.92740633,0.00030689,2]
[337486813,1725696043364,-500.0,0.00030689,2]
[337486814,1725696043390,-500.0,0.00030689,2]
[337486815,1725696043418,-214.38458385,0.00030689,2]
[337486816,1725696043462,-500.0,0.00030689,2]
[337486817,1725696043490,-7826.68800982,0.0003069,30]
[337486818,1725696044391,-3964.91,0.0003068,3]
[337486819,1725696044421,-6035.09,0.0003069,30]
[337486820,1725696045421,-501.13917964,0.00030673,2]
[337486821,1725696045450,-9498.86082036,0.0003069,30]
[337486822,1725696046468,-10000.0,0.0003069,30]
[337486823,1725696047433,-10000.0,0.0003069,30]
[337486824,1725696048370,-10000.0,0.0003069,30]
[337486825,1725696049262,-10000.0,0.0003069,30]
[337486826,1725696050373,-10000.0,0.0003069,30]
[337486827,1725696051221,-10000.0,0.0003069,30]
[337486828,1725696052169,-10000.0,0.0003069,30]
[337486829,1725696053119,-10000.0,0.0003069,30]
[337486830,1725696054060,-10000.0,0.0003069,30]
[337486833,1725696055067,-10000.0,0.0003069,30]
[337486834,1725696056126,-10000.0,0.0003069,30]
[337486835,1725696057113,-3304.09,0.0003068,3]
[337486836,1725696057140,-6695.91,0.0003069,30]
[337486837,1725696057648,248.0,0.0003,2]
[337486838,1725696058075,-500.0,0.00030689,2]
[337486839,1725696058105,-499.99999999,0.00030689,2]
[337486840,1725696058135,-500.0,0.00030689,2]
[337486841,1725696058162,-8500.00000001,0.0003069,30]
[337486842,1725696059469,-10000.0,0.0003069,30]
[337486843,1725696060193,-10000.0,0.0003069,30]
[337486844,1725696061322,-10000.0,0.0003069,30]
[337486845,1725696062447,-10000.0,0.0003069,30]
[337486846,1725696063591,-10000.0,0.0003069,30]
[337486847,1725696064542,-10000.0,0.0003069,30]
[337486848,1725696065448,-10000.0,0.0003069,30]
[337486849,1725696066412,-500.0,0.00030673,5]
[337486850,1725696066439,-9500.0,0.0003069,30]
[337486851,1725696067508,-2753.41,0.0003068,3]
[337486852,1725696067536,-7246.59,0.0003069,30]
[337486853,1725696069819,-10000.0,0.0003069,30]